bitfinex-derivatives/quotes_ETHF0:USTF0_20250621
["timestamp","ask_amount","ask_price","bid_price","bid_amount"]
[1750544301879,3.2078,2295.6,2295.1,1.407]
[1750544302079,0.8712,2295.2,2295.1,1.407]
[1750544302277,39.303,2295.4,2294.9,1.2085]
[1750544302478,0.87134,2294.9,2294.7,4.6148]
[1750544302675,0.87135,2294.8,2294.7,3.2078]
[1750544302875,12.3058,2294.9,2294.3,3.2078]
[1750544303186,12.37427599,2294.9,2294.3,3.2078]
[1750544303477,0.87149,2294.5,2294.2,1.1446]
[1750544303681,31.07249,2294.5,2294.2,1.1446]
[1750544303891,31.07247,2294.5,2294.2,1.1446]
[1750544304180,30.199,2294.5,2294.0,3.2078]
[1750544304378,30.199,2294.5,2294.1,1.1446]
[1750544304579,3.2078,2294.6,2294.1,1.1446]
[1750544304773,30.199,2294.7,2294.1,1.1446]
[1750544305085,13.57407599,2294.9,2294.6,3.2078]
[1750544305086,0.06847599,2294.9,2294.6,3.2078]
[1750544305382,0.06847599,2294.9,2294.3,3.2078]
[1750544305976,0.06847599,2294.9,2294.4,1.1969]
[1750544306176,0.93981599,2294.9,2294.4,1.1969]
[1750544306381,0.06847599,2294.9,2294.6,3.2078]
[1750544306572,0.06847599,2294.9,2294.4,1.1969]
[1750544307177,0.06847599,2294.9,2294.5,3.2078]
[1750544308376,0.06847599,2294.9,2294.4,1.1969]
[1750544308377,0.8714,2294.7,2294.4,1.1969]
[1750544308579,0.8714,2294.7,2294.2,1.1446]
[1750544308580,0.87149,2294.5,2294.2,1.1446]
[1750544308782,30.186,2294.6,2294.2,1.1446]
[1750544308980,0.87147,2294.5,2294.2,1.1446]
[1750544309684,0.06847599,2294.9,2294.2,9.3524]
[1750544309884,0.06847599,2294.9,2294.4,3.2078]
[1750544310282,0.06847599,2294.9,2294.7,3.2078]
[1750544310678,0.06847599,2294.9,2294.3,1.1705]
[1750544310679,0.06847599,2294.9,2294.4,3.2078]
[1750544311783,0.06847599,2294.9,2294.7,3.2078]
[1750544312377,3.2078,2295.5,2294.7,8.2078]
[1750544312582,3.2078,2295.5,2294.7,3.2078]
[1750544313084,0.06847599,2294.9,2294.7,3.2078]
[1750544313480,0.06847599,2294.9,2294.7,8.2078]
[1750544315391,0.06847599,2294.9,2294.7,3.2078]
[1750544315690,12.3068,2295.8,2294.7,8.2078]
[1750544315883,3.2078,2295.8,2295.3,3.2078]
[1750544316078,3.2078,2296.5,2295.6,3.2078]
[1750544316383,3.2078,2296.5,2296.0,3.2078]
[1750544316889,4.07851,2296.5,2296.0,3.2078]
[1750544317090,0.87075,2296.4,2295.7,4.3909]
[1750544317282,0.87079,2296.3,2295.7,4.3909]
[1750544317484,1.1383,2296.3,2295.7,4.3909]
[1750544317892,2.0091,2296.3,2295.7,4.3909]
[1750544318193,1.1383,2296.3,2295.7,4.3909]
[1750544319189,4.07865,2296.2,2295.7,2.6405]
[1750544319390,1.3338,2296.1,2295.7,2.6405]
[1750544319792,12.2358,2296.2,2295.7,2.6405]
[1750544319980,9.028,2296.2,2295.7,2.6405]
[1750544320186,9.028,2296.2,2295.8,1.4574]
[1750544320388,1.1383,2296.3,2295.8,1.4574]
[1750544321190,2.4721,2296.3,2295.8,1.4574]
[1750544321692,1.1383,2296.3,2295.8,1.4574]
[1750544321888,2.578,2296.3,2295.8,1.4574]
[1750544322287,11.70173753,2296.2,2295.5,1.2441]
[1750544322493,1.4397,2296.1,2295.5,1.2441]
[1750544322692,11.33757,2296.1,2295.5,1.2441]
[1750544323083,10.4667,2296.1,2295.5,1.2441]
[1750544323493,10.4667,2296.1,2295.6,1.3781]
[1750544325696,1.4397,2296.1,2295.6,1.3781]
[1750544326202,12.2348,2296.2,2295.6,1.3781]
[1750544326599,13.6204,2296.2,2295.6,1.3781]
[1750544327292,3.2078,2296.2,2295.7,3.2078]
[1750544327495,3.2078,2296.5,2296.0,3.2078]
[1750544327693,3.2078,2296.5,2295.8,10.3953]
[1750544327694,0.87076,2296.4,2295.8,9.027]
[1750544327893,3.42676,2296.4,2295.6,4.5761]
[1750544328096,11.583,2296.4,2295.6,4.5761]
[1750544328499,12.45375,2296.4,2295.6,4.5761]
[1750544329501,3.2078,2296.2,2295.6,4.5761]
[1750544329695,1.3795,2296.1,2295.6,3.2078]
[1750544330003,9.8979,2296.0,2295.6,3.2078]
[1750544330197,9.027,2296.0,2295.6,3.2078]
[1750544330594,1.44797599,2296.1,2295.6,3.2078]
[1750544330595,0.06847599,2296.1,2295.6,3.2078]
[1750544330895,0.06847599,2296.1,2295.7,1.3707]
[1750544331803,0.06847599,2296.1,2295.9,3.2078]
[1750544331990,0.06847599,2296.1,2296.0,1.4356]
[1750544332304,3.2078,2296.5,2296.0,1.4356]
[1750544332602,0.06847599,2296.2,2296.0,1.4356]
[1750544333401,1.2089,2296.6,2296.0,1.4356]
[1750544333995,2.07957,2296.6,2296.0,1.4356]
[1750544334397,3.2078,2296.8,2296.0,1.4356]
[1750544334703,0.87068,2296.6,2296.0,1.4356]
[1750544335507,0.06847599,2296.1,2296.0,1.4356]
[1750544339702,0.06847599,2296.1,2295.9,3.2078]
[1750544339903,0.06847599,2296.1,2295.5,3.2078]
[1750544340108,1.31007599,2296.1,2295.5,4.5755]
[1750544340309,0.06847599,2296.1,2295.8,3.2078]
[1750544340503,0.06847599,2296.1,2295.5,3.2078]
[1750544340713,8.49393753,2295.8,2295.2,3.2078]
[1750544341006,5.825,2295.7,2295.2,3.2078]
[1750544341205,0.87121,2295.2,2294.9,3.2078]
[1750544341406,3.2078,2295.4,2294.9,3.2078]
[1750544341608,9.025,2295.3,2294.9,4.6438]
[1750544342009,11.5851,2295.3,2294.9,3.2078]
[1750544342406,1.1845,2295.3,2294.9,3.2078]
[1750544343012,1.2416,2295.7,2295.0,9.025]
[1750544343317,1.2416,2295.7,2295.0,10.461]
[1750544343514,4.4494,2295.7,2295.0,10.461]
[1750544343811,4.4494,2295.7,2295.0,1.436]
[1750544344017,13.4754,2295.7,2295.0,1.436]
[1750544345015,14.9478,2295.7,2295.0,1.436]
[1750544345819,14.9478,2295.7,2295.2,3.2078]
[1750544345820,4.4494,2295.7,2295.2,3.2078]
[1750544346117,4.4494,2295.7,2295.3,1.4556]
[1750544348014,1.2416,2295.7,2295.3,2.6001]
[1750544348409,5.32042,2295.7,2294.9,3.2078]
[1750544348719,4.4494,2295.7,2295.2,3.2078]
[1750544348913,1.2416,2295.7,2295.3,1.4729]
[1750544349919,9.01347599,2295.9,2295.3,1.4729]
[1750544350116,9.01347599,2295.9,2295.4,1.1948]
[1750544350412,9.01347599,2295.9,2295.5,1.3508]
[1750544350918,0.87098,2295.8,2295.4,1.1948]
[1750544351116,2.29918,2295.8,2295.3,1.1275]
[1750544351504,2.2992,2295.8,2295.3,1.1275]
[1750544351714,2.29919,2295.8,2295.3,1.1275]
[1750544351916,1.4282,2295.8,2295.2,3.2078]
[1750544352224,2.29919,2295.8,2295.2,3.2078]
[1750544352514,1.4282,2295.8,2295.3,1.3508]
[1750544352818,2.29917,2295.8,2295.3,1.3508]
[1750544353818,1.4282,2295.8,2295.3,1.3508]
[1750544354020,10.99993673,2295.7,2295.2,3.2078]
[1750544354317,10.99993673,2295.7,2295.0,1.1948]
[1750544354318,1.4379,2295.6,2295.0,1.1948]
[1750544354519,1.4379,2295.6,2295.1,1.3832]
[1750544355111,1.4379,2295.6,2294.9,3.2078]
[1750544355112,7.79213673,2295.4,2294.9,3.2078]
[1750544355308,1.1816,2295.3,2294.9,3.2078]
[1750544355518,2.5486,2295.3,2294.9,3.2078]
[1750544356121,1.1816,2295.3,2294.9,3.2078]
[1750544356820,2.05277,2295.3,2294.9,3.2078]
[1750544357020,3.41977,2295.3,2294.9,3.2078]
[1750544357221,2.5486,2295.3,2294.9,3.2078]
[1750544357518,3.41977,2295.3,2294.9,3.2078]
[1750544357724,0.87121,2295.2,2294.9,3.2078]
[1750544358021,3.41978,2295.3,2294.9,3.2078]
[1750544358518,11.87119673,2295.1,2294.5,4.391]
[1750544358715,1.4348,2295.0,2294.5,5.7657]
[1750544359417,10.99993673,2295.1,2294.5,5.7657]
[1750544359720,13.30599673,2295.1,2294.5,5.7657]
[1750544359916,0.87128,2295.0,2294.5,5.7657]
[1750544360219,4.6426,2295.1,2294.5,3.2078]
[1750544360518,0.8714,2294.7,2294.2,3.2078]
[1750544360718,15.7134,2294.7,2294.2,3.2078]
[1750544360917,17.1482,2294.7,2294.2,3.2078]
[1750544361319,14.842,2294.7,2294.2,3.2078]
[1750544361508,5.896,2294.7,2294.3,1.3747]
[1750544361913,6.76739,2294.7,2294.3,1.3747]
[1750544362118,0.87143,2294.6,2294.2,3.2078]
[1750544362311,5.896,2294.7,2294.2,3.2078]
[1750544362516,1.25007599,2295.3,2294.6,10.99993673]
[1750544362712,0.06847599,2295.3,2295.1,3.2078]
[1750544363021,0.06847599,2295.3,2294.7,12.6637]
[1750544363022,3.2078,2295.5,2295.2,1.3514]
[1750544363922,0.06847599,2295.3,2295.2,1.3514]
[1750544364123,0.06847599,2295.3,2294.8,3.2078]
[1750544364326,0.06847599,2295.3,2294.9,1.3514]
[1750544364912,0.06847599,2295.3,2294.9,4.5592]
[1750544367924,3.2078,2295.6,2294.9,4.5592]
[1750544368822,0.06847599,2295.5,2294.9,4.5592]
[1750544369826,4.07885,2295.6,2294.9,4.5592]
[1750544370725,0.87108,2295.5,2294.9,4.5592]
[1750544371025,0.06847599,2295.3,2294.9,4.5592]
[1750544371516,7.79213673,2295.1,2294.7,2.3653]
[1750544371718,3.2078,2295.0,2294.7,1.1612]
[1750544371917,3.2078,2295.0,2294.8,1.4651]
[1750544373824,3.27627599,2295.3,2294.8,1.4651]
[1750544374025,0.8712,2295.2,2294.8,1.4651]
[1750544374521,3.2078,2295.3,2294.9,3.2078]
[1750544374722,11.00053,2295.4,2295.0,1.3574]
[1750544374926,3.2078,2295.6,2295.2,3.2078]
[1750544375226,3.2078,2295.6,2295.3,1.3574]
[1750544375427,3.2078,2295.6,2295.4,1.166]
[1750544375628,3.2078,2295.6,2295.5,1.3574]
[1750544376731,0.87105,2295.6,2295.5,1.3574]
[1750544377130,0.87109,2295.5,2295.4,1.166]
[1750544377329,3.2078,2295.6,2294.9,3.2078]
[1750544377531,0.87114,2295.4,2294.9,4.6649]
[1750544377830,0.87117,2295.3,2294.9,4.6649]
[1750544378332,0.87117,2295.3,2294.9,1.4571]
[1750544378631,0.87118,2295.3,2294.9,4.6649]
[1750544378831,0.8712,2295.2,2294.9,4.6649]
[1750544379134,0.87125,2295.1,2294.9,1.4571]
[1750544379437,0.87118,2295.3,2294.9,1.4571]
[1750544379934,0.87114,2295.4,2294.9,4.6649]
[1750544380131,1.1678,2295.5,2294.9,4.6649]
[1750544380428,0.87113,2295.4,2294.9,4.6649]
[1750544381334,1.1678,2295.5,2294.9,4.6649]
[1750544382033,0.87115,2295.4,2294.9,4.6649]
[1750544382830,3.27627599,2295.6,2294.9,4.6649]
[1750544383032,0.06847599,2295.6,2295.3,3.2078]
[1750544383240,3.2078,2296.2,2295.4,20.24103673]
[1750544383533,4.07863,2296.2,2295.7,3.2078]
[1750544383835,4.07863,2296.2,2295.8,1.3994]
[1750544384030,0.87087,2296.1,2295.8,1.3994]
[1750544384231,3.2078,2296.2,2295.8,1.3994]
[1750544385034,0.06847599,2296.0,2295.8,1.3994]
[1750544385226,1.4505,2296.6,2295.8,1.3994]
[1750544385227,4.07845,2296.7,2295.8,10.2594]
[1750544385422,0.8707,2296.6,2296.1,3.2078]
[1750544385628,0.8707,2296.6,2296.2,1.3994]
[1750544386235,3.2078,2296.7,2296.2,1.3994]
[1750544386536,3.2078,2296.4,2295.4,2.1895]
[1750544386742,3.2078,2295.9,2295.4,2.1895]
[1750544387034,0.06847599,2295.6,2295.5,1.457]
[1750544389137,3.2078,2295.9,2295.5,1.457]
[1750544389343,4.07875,2295.9,2295.5,1.457]
[1750544389539,0.87097,2295.8,2295.5,1.457]
[1750544389735,3.2078,2295.9,2295.5,1.457]
[1750544390038,0.87091,2296.0,2295.5,1.457]
[1750544390241,1.3307,2296.1,2295.5,1.457]
[1750544390740,0.87098,2295.8,2295.5,1.457]
[1750544391133,0.87101,2295.7,2295.4,1.0883]
[1750544391335,0.871,2295.8,2295.4,1.0883]
[1750544391628,1.1689,2295.8,2295.4,1.0883]
[1750544392237,1.1689,2295.8,2295.5,4.5777]
[1750544392430,1.1689,2295.8,2295.5,1.3699]
[1750544392837,1.1689,2295.8,2295.5,4.5777]
[1750544393036,1.1689,2295.8,2295.5,1.3699]
[1750544395244,1.1689,2295.8,2295.4,1.0883]
[1750544395444,1.1689,2295.8,2295.5,3.2078]
[1750544396748,1.1689,2295.8,2295.4,1.0883]
[1750544396935,0.87103,2295.7,2295.4,1.0883]
[1750544397137,0.87103,2295.7,2293.6,0.87181]
[1750544397138,49.65693673,2295.6,2294.8,3.2078]
[1750544397444,10.99993673,2295.2,2294.8,3.2078]
[1750544397644,0.87115,2295.4,2294.8,3.2078]
[1750544397849,3.2078,2295.5,2295.1,3.2078]
[1750544398039,4.0789,2295.5,2295.1,3.2078]
[1750544398240,3.2078,2295.5,2295.1,3.2078]
[1750544398441,3.2078,2295.5,2295.2,1.4444]
[1750544400248,4.0789,2295.5,2295.0,4.3325]
[1750544400446,4.0789,2295.5,2295.0,5.7769]
[1750544400741,0.87114,2295.4,2295.0,1.1247]
[1750544400947,2.33094,2295.4,2295.0,1.1247]
[1750544401146,1.0832,2295.3,2295.0,1.1247]
[1750544401547,1.0832,2295.3,2294.7,13.1557]
[1750544401548,1.95438,2295.3,2294.7,4.2967]
[1750544401839,1.0832,2295.3,2294.8,1.4688]
[1750544402246,1.95436,2295.3,2294.8,1.4688]
[1750544403340,1.0832,2295.3,2294.8,1.4688]
[1750544403845,1.95436,2295.3,2294.8,1.4688]
[1750544404247,1.0832,2295.3,2294.8,1.4688]
[1750544404643,1.95437,2295.3,2294.8,1.4688]
[1750544405452,1.0832,2295.3,2294.8,1.4688]
[1750544406350,3.2078,2295.5,2295.0,3.2078]
[1750544406551,8.86,2295.4,2295.0,3.2078]
[1750544406741,0.87118,2295.3,2295.0,3.2078]
[1750544407656,10.99993673,2295.2,2294.6,1.093]
[1750544407955,19.85993673,2295.2,2294.6,1.093]
[1750544408150,3.39735,2295.1,2294.6,1.093]
[1750544408557,12.16534,2295.1,2294.7,1.4444]
[1750544409157,11.2941,2295.1,2294.7,1.4444]
[1750544409350,12.16534,2295.1,2294.7,1.4444]
[1750544409551,11.2941,2295.1,2294.7,1.4444]
[1750544409747,1.0961,2295.4,2295.0,3.2078]
[1750544409949,1.0961,2295.4,2295.1,1.4444]
[1750544410145,3.2078,2295.5,2295.1,4.6522]
[1750544410351,3.2078,2295.5,2295.1,13.4212]
[1750544410553,4.3576,2295.9,2295.2,2.2919]
[1750544410753,4.3576,2295.9,2295.3,1.4134]
[1750544410949,3.2078,2295.9,2295.3,1.4134]
[1750544411765,4.3576,2296.2,2295.5,3.2078]
[1750544411953,4.3576,2296.2,2295.6,1.4134]
[1750544412347,4.3576,2296.2,2295.7,1.1538]
[1750544412548,4.3576,2296.2,2295.8,2.5221]
[1750544413954,3.2078,2296.2,2295.8,2.5221]
[1750544414760,0.87073,2296.5,2295.9,3.2078]
[1750544414950,5.3105,2296.6,2296.0,1.4209]
[1750544415147,10.8707,2296.6,2296.2,3.2078]
[1750544415351,1.0564,2296.6,2296.3,1.4209]
[1750544415654,13.0956,2296.9,2296.3,2.5543]
[1750544415854,0.87064,2296.7,2296.3,2.5543]
[1750544416255,0.87064,2296.7,2295.8,1.1087]
[1750544416256,3.2078,2296.6,2295.8,1.1087]
[1750544416453,3.2078,2296.6,2296.0,4.3412]
[1750544416654,8.767,2296.7,2296.3,3.2078]
[1750544416956,2.2377,2296.9,2296.4,1.381]
[1750544417156,2.2377,2296.9,2296.4,2.4992]
[1750544417863,11.9748,2297.0,2296.4,2.4992]
[1750544417864,3.2078,2297.0,2296.4,2.4992]
[1750544418058,3.2078,2297.0,2296.5,1.0943]
[1750544418359,3.2078,2297.3,2296.7,3.2078]
[1750544418557,3.2078,2297.3,2296.8,10.147]
[1750544419263,3.2078,2297.6,2297.0,3.2078]
[1750544419476,3.2078,2297.6,2297.1,2.49]
[1750544419775,3.2078,2297.6,2297.1,3.5843]
[1750544420274,4.07792,2298.1,2297.5,3.2078]
[1750544420571,4.07792,2298.1,2297.6,1.431]
[1750544420780,3.2078,2298.1,2297.6,1.431]
[1750544422170,3.2078,2298.1,2297.7,8.764]
[1750544422370,3.2078,2298.1,2297.8,2.5593]
[1750544422571,3.2078,2298.1,2297.8,3.6124]
[1750544422866,3.2078,2298.1,2297.8,8.6124]
[1750544423066,2.4996,2298.9,2298.0,3.2078]
[1750544423067,3.2078,2298.4,2298.0,3.2078]
[1750544423271,3.2078,2298.4,2298.1,10.2283]
[1750544423968,4.2873,2298.9,2298.3,3.2078]
[1750544424273,1.1022,2299.1,2298.3,3.2078]
[1750544424474,1.97194,2299.1,2298.4,1.4643]
[1750544424674,1.97194,2299.1,2298.4,2.5481]
[1750544424876,0.86977,2299.0,2298.5,3.2078]
[1750544425064,0.86977,2299.0,2298.6,1.4643]
[1750544425268,3.2078,2299.2,2298.6,1.4643]
[1750544425469,3.2078,2299.9,2299.0,3.2078]
[1750544425675,3.2078,2299.9,2299.1,1.349]
[1750544425876,3.2078,2299.6,2299.1,1.349]
[1750544426271,12.4071,2299.8,2299.1,1.349]
[1750544427082,4.51457,2299.8,2299.1,1.349]
[1750544427276,3.6451,2299.8,2299.1,1.349]
[1750544427780,2.2121,2299.8,2299.1,1.349]
[1750544427981,2.2121,2299.8,2299.1,2.4566]
[1750544428775,3.2078,2299.9,2299.3,3.2078]
[1750544429076,11.9668,2300.5,2299.6,3.2078]
[1750544429380,11.9668,2300.5,2299.9,3.2078]
[1750544429570,11.9668,2300.5,2299.6,3.2078]
[1750544429769,2.34245,2300.4,2299.6,4.5489]
[1750544430274,3.2078,2300.5,2300.1,3.2078]
[1750544430572,3.2078,2301.3,2300.4,3.2078]
[1750544430779,12.25406,2301.2,2300.5,1.3411]
[1750544431077,11.3851,2301.2,2300.5,1.3411]
[1750544431276,3.2078,2300.7,2299.9,3.2078]
[1750544431474,11.9638,2300.7,2299.9,3.2078]
[1750544431678,13.3525,2300.7,2300.0,1.4363]
[1750544432076,0.86917,2300.6,2300.0,1.4363]
[1750544432377,0.86917,2300.6,2300.2,3.2078]
[1750544432378,9.9119,2300.6,2300.2,3.2078]
[1750544433574,11.3006,2300.6,2300.2,3.2078]
[1750544434483,1.1559,2300.6,2300.2,3.2078]
[1750544434779,1.1345,2301.1,2300.5,3.2078]
[1750544434984,2.4799,2301.1,2300.6,1.3868]
[1750544435780,11.2339,2301.1,2300.6,1.3868]
[1750544436384,11.2339,2301.1,2300.8,3.2078]
[1750544437076,2.4799,2301.1,2300.8,3.2078]
[1750544437278,11.2319,2301.1,2300.8,3.2078]
[1750544437879,2.4799,2301.1,2300.8,3.2078]
[1750544438084,11.2319,2301.1,2300.6,1.3868]
[1750544438379,9.8865,2301.1,2300.6,1.3868]
[1750544438574,9.8865,2301.1,2300.7,3.2078]
[1750544438776,0.06847599,2301.2,2300.7,3.2078]
[1750544438976,3.2078,2301.3,2300.8,1.4252]
[1750544439385,3.2078,2301.3,2300.4,4.2891]
[1750544439577,3.2078,2301.0,2300.4,5.7143]
[1750544439974,1.49037599,2301.2,2300.7,3.2078]
[1750544440190,0.06847599,2301.2,2300.7,3.2078]
[1750544440686,0.86897,2301.1,2300.7,3.2078]
[1750544440984,1.4463,2301.1,2300.4,5.7143]
[1750544441177,1.0706,2301.0,2300.4,5.7143]
[1750544443079,0.86906,2300.9,2300.4,1.4252]
[1750544443277,12.9434,2301.0,2300.4,1.4252]
[1750544443592,0.06847599,2301.2,2300.6,3.2078]
[1750544443884,0.06847599,2301.2,2300.7,1.4651]
[1750544444482,1.40497599,2301.2,2300.7,1.4651]
[1750544444787,3.2078,2300.9,2300.2,3.2078]
[1750544444985,2.4805,2300.8,2300.3,1.4651]
[1750544445185,3.5904,2300.8,2300.3,1.4651]
[1750544445590,0.86912,2300.7,2300.3,1.4651]
[1750544445886,0.86913,2300.7,2300.3,1.4651]
[1750544446092,0.86917,2300.6,2300.1,1.077]
[1750544446283,1.3365,2300.7,2300.1,5.7499]
[1750544446483,2.20563,2300.7,2300.1,5.7499]
[1750544446684,11.78799,2300.8,2300.1,5.7499]
[1750544446990,2.28312,2300.7,2300.1,5.7499]
[1750544447188,3.2078,2300.6,2299.8,11.8728]
[1750544447490,0.86924,2300.4,2299.8,3.2078]
[1750544447788,5.49107,2300.3,2299.8,3.2078]
[1750544447989,4.6218,2300.3,2299.8,3.2078]
[1750544448182,14.15607,2300.3,2299.8,3.2078]
[1750544448383,13.2868,2300.3,2299.8,3.2078]
[1750544448584,3.2078,2300.3,2299.9,1.3933]
[1750544449890,1.414,2300.7,2299.9,1.3933]
[1750544450089,8.664,2300.4,2299.9,1.3933]
[1750544450294,1.34859566,2300.3,2299.8,3.2078]
[1750544450584,4.3177,2300.8,2300.1,3.2078]
[1750544450790,1.34847607,2300.7,2300.2,1.4636]
[1750544450989,1.34847607,2300.6,2300.2,1.4636]
[1750544451186,1.35023711,2300.5,2300.2,1.4636]
[1750544451378,0.06847599,2300.9,2300.4,3.2078]
[1750544451580,0.06847599,2300.9,2300.5,1.4636]
[1750544451788,0.06847599,2300.9,2300.5,2.5434]
[1750544452187,0.86893,2301.2,2300.5,2.5434]
[1750544452388,2.22064445,2301.1,2300.5,2.5434]
[1750544452686,1.35167445,2301.0,2300.5,2.5434]
[1750544452887,2.22071445,2300.9,2300.5,2.5434]
[1750544453087,3.98530047,2301.2,2300.5,1.4636]
[1750544453088,0.06847599,2300.7,2300.5,1.4636]
[1750544453292,1.35336661,2300.6,2300.5,1.4636]
[1750544453690,0.06847599,2300.7,2300.5,1.4636]
[1750544454184,1.35336357,2300.6,2300.5,1.4636]
[1750544454888,1.35336357,2300.6,2300.1,3.2078]
[1750544455088,1.35336357,2300.5,2299.8,11.8718]
[1750544455292,1.35336357,2300.4,2300.1,1.3731]
[1750544455489,1.35336357,2300.3,2300.1,1.3731]
[1750544455685,1.35336357,2300.2,2300.1,1.3731]
[1750544455891,1.35336357,2300.2,2299.8,3.2078]
[1750544456085,1.35336357,2300.1,2299.8,4.65]
[1750544458994,2.22262357,2300.1,2299.8,4.65]
[1750544459195,0.86931,2300.0,2299.8,4.65]
[1750544459489,0.86931,2300.0,2299.4,3.2078]
[1750544459490,1.35336357,2299.9,2299.4,3.2078]
[1750544459683,3.95058752,2299.8,2299.6,1.4569]
[1750544459886,1.35336357,2299.7,2299.6,1.4569]
[1750544463000,15.01836357,2299.7,2299.0,3.2078]
[1750544463195,0.86954,2299.4,2299.0,3.2078]
[1750544463399,1.35336357,2299.3,2299.1,1.3325]
[1750544463604,1.35336357,2299.2,2299.1,1.3325]
[1750544464104,5.80376918,2299.8,2299.1,14.9985]
[1750544464401,0.86941,2299.7,2299.3,3.2078]
[1750544464700,4.07718,2299.8,2299.4,1.3325]
[1750544465000,0.86938,2299.8,2299.4,1.3325]
[1750544465401,0.06847599,2299.7,2299.4,1.3325]
[1750544465793,0.93789599,2299.7,2299.4,1.3325]
[1750544466091,0.06847599,2299.7,2299.4,1.3325]
[1750544466993,0.06847599,2299.7,2299.6,3.2078]
[1750544467195,0.06847599,2299.7,2299.5,1.0575]
[1750544467390,1.90688,2300.1,2299.5,1.0575]
[1750544467591,10.57288,2300.1,2299.6,5.5896]
[1750544468290,0.06847599,2300.0,2299.6,5.5896]
[1750544468895,0.06847599,2300.0,2299.9,3.2078]
[1750544469296,8.592,2300.4,2299.9,3.2078]
[1750544469598,8.592,2300.4,2300.0,1.4752]
[1750544470397,55.418,2300.6,2300.2,3.2078]
[1750544470602,0.86917,2300.4,2300.2,3.2078]
[1750544470791,64.01,2300.6,2300.2,3.2078]
[1750544470792,0.86913,2300.5,2300.2,3.2078]
[1750544471104,3.2078,2300.6,2300.2,3.2078]
[1750544471295,3.2078,2300.6,2300.3,1.4164]
[1750544472400,3.2078,2300.6,2300.4,0.9995]
[1750544472595,3.2078,2300.6,2300.5,1.4164]
[1750544472998,3.2078,2300.6,2300.2,3.2078]
[1750544473205,4.07689,2300.6,2300.2,3.2078]
[1750544473396,0.86909,2300.6,2300.2,3.2078]
[1750544473905,0.86909,2300.6,2300.3,1.4434]
[1750544474100,0.86906,2300.7,2300.3,1.4434]
[1750544474504,13.8889,2300.9,2300.3,1.4434]
[1750544474803,1.3763,2300.8,2300.3,1.4434]
[1750544475197,0.86909,2300.6,2300.3,1.4434]
[1750544475392,1.3763,2300.8,2300.3,1.4434]
[1750544475606,0.86917,2300.4,2300.0,2.1064]
[1750544475807,0.86917,2300.4,2300.0,3.5498]
[1750544476403,3.2078,2300.6,2300.0,3.5498]
[1750544476601,0.86913,2300.5,2300.2,3.2078]
[1750544477104,4.0769,2300.6,2300.2,3.2078]
[1750544477406,0.86911,2300.5,2300.2,3.2078]
[1750544478204,3.2078,2300.6,2300.2,10.96595132]
[1750544478401,3.2078,2300.6,2300.3,1.3856]
[1750544478702,0.86913,2300.5,2300.0,2.1064]
[1750544479002,0.86911,2300.5,2300.1,1.3856]
[1750544479206,4.07689,2300.6,2300.1,1.3856]
[1750544479393,0.86912,2300.5,2300.2,3.2078]
[1750544479596,0.86912,2300.5,2300.1,1.3856]
[1750544480407,0.06847599,2300.4,2300.1,1.3856]
[1750544481709,0.06847599,2300.4,2300.0,2.1064]
[1750544481914,0.06847599,2300.4,2300.1,4.5592]
[1750544482211,0.06847599,2300.4,2300.3,7.75815132]
[1750544482604,0.86901,2300.8,2300.3,7.75815132]
[1750544482902,0.86899,2300.8,2300.4,1.3514]
[1750544483299,0.86903,2300.7,2300.4,1.3514]
[1750544484207,0.8691,2300.6,2300.1,3.2078]
[1750544484507,0.06847599,2300.4,2300.2,1.4154]
[1750544485405,0.06847599,2300.4,2300.3,7.75815132]
[1750544485609,3.2078,2300.9,2300.3,16.34915132]
[1750544485903,8.591,2301.2,2300.8,3.2078]
[1750544486105,2.87108,2301.4,2300.9,1.3406]
[1750544486311,3.2078,2301.5,2300.9,11.17965132]
[1750544486504,3.2078,2301.5,2301.1,3.2078]
[1750544486703,5.2101,2301.8,2301.2,9.09875132]
[1750544486902,5.2101,2301.8,2301.2,9.34341048]
[1750544487102,3.2078,2301.8,2301.3,8.59]
[1750544487306,0.9851,2302.2,2301.5,3.2078]
[1750544487704,0.9851,2302.2,2301.8,3.2078]
[1750544488010,0.9851,2302.2,2301.9,1.3406]
[1750544489104,0.9851,2302.2,2301.5,1.0152]
[1750544489305,4.6168,2302.1,2301.5,1.0152]
[1750544489500,4.6168,2302.1,2301.6,1.4451]
[1750544489908,4.6168,2302.1,2301.5,1.0152]
[1750544490099,4.6168,2302.1,2301.5,2.4603]
[1750544490507,3.2078,2302.4,2301.8,7.75815132]
[1750544490699,3.2078,2302.8,2302.1,3.2078]
[1750544490901,1.409,2302.7,2301.9,1.4451]
[1750544491107,2.4316,2302.7,2301.9,1.4451]
[1750544491307,3.2078,2302.5,2301.9,1.4451]
[1750544492808,8.589,2302.6,2301.9,1.4451]
[1750544493008,3.2078,2302.5,2301.9,1.4451]
[1750544494012,3.2078,2302.5,2302.1,7.75815132]
[1750544494214,3.2078,2302.5,2302.2,1.4686]
[1750544495115,1.0226,2302.7,2302.3,3.2078]
[1750544495303,1.0226,2302.7,2302.4,1.4395]
[1750544495708,4.2304,2302.7,2302.1,1.1979]
[1750544495908,1.0226,2302.7,2302.1,1.1979]
[1750544496113,0.06847599,2302.8,2302.3,3.2078]
[1750544496417,1.0331,2302.7,2302.3,3.2078]
[1750544496916,0.06847599,2302.8,2302.3,4.6473]
[1750544497119,0.06847599,2302.8,2302.5,7.75815132]
[1750544497319,0.06847599,2302.8,2302.6,1.4395]